[Event "Estonian-ch Women 2020"]
[Site "Paul Kerese Malemaja"]
[Date "2020.08.08"]
[Round "1.2"]
[White "Ivanova, Lidia"]
[Black "Tonso, Liina"]
[Result "0-1"]
[ECO "B20"]
[WhiteElo "1430"]
[BlackElo "1862"]
[Annotator "NA RC"]
[PlyCount "69"]
[EventDate "2020.08.09"]
[EventCountry "EST"]
[SourceTitle "playchess.com"]
[Source "ChessBase"]
[SourceQuality "1"]
[TimeControl "40/5400+30:900+30"]

1. e4 {[%emt 0:00:00]} c5 {[%emt 0:00:00]} 2. d3 {[%emt 0:00:00]} a6 {[%emt 0:00:14]} 3. g3 {[%emt 0:00:00]} b5 {[%emt 0:00:27]} 4. Bg2 {[%emt 0:00:19]} Bb7 {[%emt 0:00:29]} 5. f4 {[%emt 0:00:59]} e6 {[%emt 0:00:30]} 6. Nf3 {[%emt 0:00:38]} d5 {[%emt 0:00:59]} 7. e5 {[%emt 0:01:38]} h5 {[%emt 0:01:50]} 8. Be3 {[%emt 0:03:54]} Nh6 {[%emt 0:02:37]} 9. h3 {[%emt 0:02:11]} Nf5 {[%emt 0:04:24]} 10. Bf2 {[%emt 0:01:36]} Nc6 {[%emt 0:06:26]} 11. Nbd2 {[%emt 0:08:08]} Be7 {[%emt 0:03:58]} 12. a4 {[%emt 0:11:26]} b4 {[%emt 0:04:39]} 13. Nb3 {[%emt 0:02:20]} Qb6 {[%emt 0:09:22]} 14. O-O {[%emt 0:15:59]} Na5 {[%emt 0:06:45]} 15. Nxa5 {[%emt 0:25:16]} Qxa5 {[%emt 0:00:11]} 16. b3 {[%emt 0:00:52]} Qc7 {[%emt 0:10:30]} 17. Rc1 {[%emt 0:02:21]} a5 {[%emt 0:06:52]} 18. Qe1 {[%emt 0:09:48]} Rc8 {[%emt 0:05:11]} 19. g4 {[%emt 0:00:45]} hxg4 {[%emt 0:05:10]} 20. hxg4 {[%emt 0:00:03]} Nh6 {[%emt 0:00:27]} 21. Nh2 {[%emt 0:04:25]} c4 {[%emt 0:04:50]} 22. dxc4 {[%emt 0:02:37]} dxc4 {[%emt 0:00:29]} 23. Bxb7 {[%emt 0:01:50]} Qxb7 {[%emt 0:00:10]} 24. Qe2 {[%emt 0:00:11]} Bc5 {[%emt 0:06:01]} 25. Bxc5 {[%emt 0:00:41]} Rxc5 {[%emt 0:00:06]} 26. Qg2 {[%emt 0:00:45]} Qxg2+ {[%emt 0:01:25]} 27. Kxg2 {[%emt 0:00:05]} Ke7 {[%emt 0:01:20]} 28. Rfd1 {[%emt 0:00:22]} f6 {[%emt 0:03:11]} 29. exf6+ {[%emt 0:00:29]} gxf6 {[%emt 0:00:13]} 30. Re1 {[%emt 0:01:51]} Rhc8 {[%emt 0:01:01]} 31. Re3 {[%emt 0:03:00]} cxb3 {[%emt 0:00:33]} 32. Rce1 {[%emt 0:00:53]} bxc2 {[%emt 0:03:01]} 33. Rxe6+ {[%emt 0:00:06]} Kf7 {[%emt 0:01:12]} 34. g5 {[%emt 0:00:51]} fxg5 {[%emt 0:04:28]} 35. Rxh6 0-1

[Event "Estonian-ch Women 2020"]
[Site "Paul Kerese Malemaja"]
[Date "2020.08.09"]
[Round "2.2"]
[White "Sinitsina, Anastassia"]
[Black "Ivanova, Lidia"]
[Result "1-0"]
[ECO "A06"]
[WhiteElo "2175"]
[BlackElo "1430"]
[Annotator "ChessBase"]
[PlyCount "43"]
[EventDate "2020.08.09"]
[EventCountry "EST"]
[SourceTitle "playchess.com"]
[Source "ChessBase"]
[SourceQuality "1"]
[TimeControl "40/5400+30:900+30"]

1. Nf3 {[%emt 0:00:00]} d5 {[%emt 0:00:00]} 2. g3 {[%emt 0:00:02]} Nf6 {[%emt 0:00:41]} 3. Bg2 {[%emt 0:00:14]} g6 {[%emt 0:00:34]} 4. b3 {[%emt 0:00:52]} Bg7 {[%emt 0:00:24]} 5. Bb2 {[%emt 0:00:29]} O-O {[%emt 0:01:06]} 6. O-O {[%emt 0:00:22]} c6 {[%emt 0:03:16]} 7. d3 {[%emt 0:01:09]} Bf5 {[%emt 0:03:47]} 8. Nbd2 {[%emt 0:00:48]} a5 {[%emt 0:03:38]} 9. a4 {[%emt 0:02:29]} Na6 {[%emt 0:03:44]} 10. Re1 {[%emt 0:06:49]} Qc8 {[%emt 0:07:05]} 11. e4 {[%emt 0:02:46]} dxe4 {[%emt 0:01:37]} 12. dxe4 {[%emt 0:00:23]} Bh3 {[%emt 0:02:49]} 13. Nc4 {[%emt 0:03:53]} Bxg2 {[%emt 0:02:45]} 14. Kxg2 {[%emt 0:00:06]} Qd8 {[%emt 0:01:35]} 15. Qe2 {[%emt 0:00:48]} Nh5 {[%emt 0:07:09]} 16. e5 {[%emt 0:06:03]} Nb4 {[%emt 0:12:21]} 17. Rad1 {[%emt 0:02:23]} Qc7 {[%emt 0:00:47]} 18. Qe4 {[%emt 0:01:37]} f5 {[%emt 0:05:44]} 19. exf6 {[%emt 0:01:03]} Bxf6 {[%emt 0:00:32]} 20. Qe6+ {[%emt 0:01:30]} Kh8 {[%emt 0:02:31]} 21. Rd7 {[%emt 0:00:39]} Qb8 {[%emt 0:07:37]} 22. Qxe7 {[%emt 0:00:11]} 1-0

[Event "Estonian-ch Women 2020"]
[Site "Paul Kerese Malemaja"]
[Date "2020.08.09"]
[Round "2.3"]
[White "Tonso, Liina"]
[Black "Blokhin, Sofia"]
[Result "1-0"]
[ECO "A80"]
[WhiteElo "1862"]
[BlackElo "1786"]
[Annotator "NA"]
[PlyCount "144"]
[EventDate "2020.08.09"]
[EventCountry "EST"]
[SourceTitle "playchess.com"]
[Source "ChessBase"]
[SourceQuality "1"]
[TimeControl "40/5400+30:900+30"]

1. d4 {[%emt 0:00:00]} f5 {[%emt 0:00:00]} 2. h3 {[%emt 0:00:11]} Nf6 {[%emt 0:00:00]} 3. Nf3 {[%emt 0:00:23]} d6 {[%emt 0:00:24]} 4. Bf4 {[%emt 0:00:35]} e6 {[%emt 0:00:25]} 5. e3 {[%emt 0:01:54]} Be7 {[%emt 0:00:27]} 6. c4 {[%emt 0:04:57] A80: Dutch Defence: Unusual White second moves.} O-O {[%emt 0:00:24]} 7. Nc3 {[%emt 0:02:06]} Ne4 {[%emt 0:01:07]} 8. Qc2 {[%emt 0:12:29]} Nxc3 {[%emt 0:02:14]} 9. Qxc3 {[%emt 0:00:53]} Nd7 {[%emt 0:01:48]} 10. Be2 {[%emt 0:01:46]} Nf6 {[%emt 0:00:37] [#]} 11. O-O $146 {[%emt 0:04:16]} ({Predecessor:} 11. Bd3 a5 12. a4 b6 13. O-O Qe8 14. Qe1 Bb7 15. Ng5 Bd8 16. d5 exd5 17. Bxf5 dxc4 {½-½ (31) Radulov,N (1731)-Djordjevic,Z (1956) Belgrade 2018}) 11... Ne4 {[%emt 0:01:09]} 12. Qc2 {[%emt 0:01:18]} b6 {[%emt 0:06:15]} 13. b4 {[%emt 0:05:16]} a5 {[%emt 0:05:10]} 14. a3 {[%emt 0:04:56]} Bb7 {[%emt 0:01:43]} 15. Nd2 {[%emt 0:06:46]} Ng5 {[%emt 0:03:59]} 16. Rfd1 {[%emt 0:07:13]} Ra7 {[%emt 0:05:17]} 17. c5 {[%emt 0:10:03]} Qa8 {[%emt 0:08:13]} 18. cxb6 {[%emt 0:06:02]} cxb6 {[%emt 0:01:04]} 19. Bxg5 {[%emt 0:03:08]} Bxg5 {[%emt 0:01:18]} 20. Bf3 {[%emt 0:01:02]} d5 {[%emt 0:03:21]} 21. b5 {[%emt 0:03:23]} Qb8 {[%emt 0:07:55]} 22. Rac1 {[%emt 0:03:13]} Bc8 {[%emt 0:00:35]} 23. Be2 {[%emt 0:02:22]} Bd7 {[%emt 0:02:34]} 24. Nf3 {[%emt 0:01:09]} Bf6 {[%emt 0:00:14]} 25. Qb2 {[%emt 0:02:20]} f4 {[%emt 0:02:45]} 26. Qd2 {[%emt 0:01:40]} g5 {[%emt 0:03:41]} 27. Bd3 {[%emt 0:01:49]} Kh8 {[%emt 0:01:28]} 28. Qe2 {[%emt 0:02:39]} Rg8 {[%emt 0:07:24]} 29. e4 {[%emt 0:01:21]} Qf8 {[%emt 0:09:07]} 30. exd5 {[%emt 0:02:08]} exd5 {[%emt 0:00:11]} 31. Ne5 {[%emt 0:01:56]} Bc8 {[%emt 0:05:07]} 32. Rc6 {[%emt 0:00:49]} Re7 {[%emt 0:03:10]} 33. Rdc1 {[%emt 0:02:17]} Bb7 {[%emt 0:01:12]} 34. Rxb6 {[%emt 0:00:53]} Qg7 {[%emt 0:02:03]} 35. a4 {[%emt 0:01:31]} Rge8 {[%emt 0:00:31]} 36. Qd2 {[%emt 0:00:56]} Bxe5 {[%emt 0:01:14]} 37. dxe5 {[%emt 0:00:03]} Qxe5 {[%emt 0:00:45]} 38. Qxa5 {[%emt 0:01:03]} d4 {[%emt 0:01:12]} 39. Qd2 {[%emt 0:00:43]} Qd5 {[%emt 0:01:23]} 40. Bf1 {[%emt 0:00:00]} Re2 {[%emt 0:00:00]} 41. Qd3 {[%emt 0:05:21]} Re1 {[%emt 0:11:46]} 42. Rxe1 {[%emt 0:06:00]} Rxe1 {[%emt 0:00:10]} 43. Kh2 {[%emt 0:02:12]} Ba8 {[%emt 0:01:46]} 44. Rb8+ {[%emt 0:01:50]} Kg7 {[%emt 0:00:11]} 45. Qc4 {[%emt 0:01:23]} Qxc4 {[%emt 0:02:34]} 46. Bxc4 {[%emt 0:00:03]} Be4 {[%emt 0:01:01]} 47. Re8 {[%emt 0:01:00]} Rc1 {[%emt 0:00:25]} 48. Rxe4 {[%emt 0:00:52]} Rxc4 {[%emt 0:00:06]} 49. a5 {[%emt 0:00:19]} Rc5 {[%emt 0:01:15]} 50. Rxd4 {[%emt 0:00:46]} Rxb5 {[%emt 0:00:05]} 51. Ra4 {[%emt 0:00:26]} Rb8 {[%emt 0:01:38]} (51... Rb7 $142 52. h4 Ra7 53. hxg5 Kg6) 52. a6 {[%emt 0:00:25]} Kf6 {[%emt 0:01:15]} 53. a7 {[%emt 0:00:29]} Ra8 {[%emt 0:00:06]} 54. Ra5 {[%emt 0:00:40]} h6 {[%emt 0:00:23]} 55. Kg1 {[%emt 0:00:53]} Ke6 {[%emt 0:00:58]} 56. Kf1 {[%emt 0:00:30]} Kd6 {[%emt 0:01:19]} 57. Ke2 {[%emt 0:00:29]} Kc6 {[%emt 0:00:41]} 58. Kf3 {[%emt 0:01:11]} Kd6 {[%emt 0:01:02]} 59. Kg4 {[%emt 0:00:54]} Ke6 {[%emt 0:00:13]} 60. Kh5 {[%emt 0:00:29]} Kf6 {[%emt 0:00:13]} 61. Ra6+ {[%emt 0:00:17]} Kg7 {[%emt 0:00:26]} 62. Rg6+ {[%emt 0:00:25]} Kf8 {[%emt 0:00:38]} 63. Ra6 $2 {[%emt 0:00:54]} (63. Kxh6 $18 Rxa7 64. Kxg5) 63... Kg7 {[%emt 0:00:06]} 64. Kg4 {[%emt 0:00:24]} Kf8 {[%emt 0:01:47]} 65. Kf5 {[%emt 0:00:30]} Kg7 {[%emt 0:00:43]} 66. Ke6 {[%emt 0:00:22]} f3 {[%emt 0:01:37]} 67. gxf3 {[%emt 0:00:20]} Kg6 {[%emt 0:00:16]} 68. Kd6 {[%emt 0:00:51]} Kf5 {[%emt 0:00:43]} 69. Kc7 {[%emt 0:00:27]} Kf4 {[%emt 0:00:13]} 70. Kb7 {[%emt 0:00:29]} Rxa7+ {[%emt 0:00:14]} 71. Kxa7 {[%emt 0:00:22]} Kxf3 {[%emt 0:00:10]} 72. Rxh6 {[%emt 0:00:12]} g4 1-0

[Event "Estonian-ch Women 2020"]
[Site "Paul Kerese Malemaja"]
[Date "2020.08.09"]
[Round "2.4"]
[White "Bashkite, Viktoria"]
[Black "Narva, Triin"]
[Result "0-1"]
[ECO "A15"]
[WhiteElo "2186"]
[BlackElo "2107"]
[Annotator "ChessBase"]
[PlyCount "66"]
[EventDate "2020.08.09"]
[EventCountry "EST"]
[SourceTitle "playchess.com"]
[Source "ChessBase"]
[SourceQuality "1"]
[TimeControl "40/5400+30:900+30"]

1. c4 {[%emt 0:00:00]} Nf6 {[%emt 0:00:00]} 2. Nf3 {[%emt 0:00:11]} g6 {[%emt 0:00:17]} 3. Nc3 {[%emt 0:00:38]} Bg7 {[%emt 0:00:32]} 4. e4 {[%emt 0:02:02]} d6 {[%emt 0:00:58]} 5. d4 {[%emt 0:01:03]} O-O {[%emt 0:01:39]} 6. h3 {[%emt 0:03:31]} Nbd7 {[%emt 0:14:43]} 7. e5 {[%emt 0:15:13]} Ne8 {[%emt 0:06:29]} 8. Bg5 {[%emt 0:10:17]} f6 {[%emt 0:34:59]} 9. exf6 {[%emt 0:02:04]} Nexf6 {[%emt 0:11:38]} 10. Qd2 {[%emt 0:01:04]} c6 {[%emt 0:04:57]} 11. Bh6 {[%emt 0:04:32]} e5 {[%emt 0:06:42]} 12. Bxg7 {[%emt 0:00:45]} Kxg7 {[%emt 0:00:05]} 13. Ng5 {[%emt 0:03:35]} Qe7 {[%emt 0:03:44]} 14. O-O-O {[%emt 0:03:53]} h6 {[%emt 0:01:57]} 15. dxe5 {[%emt 0:02:24]} dxe5 {[%emt 0:00:40]} 16. Nf3 {[%emt 0:16:41]} b6 {[%emt 0:06:45]} 17. Bd3 {[%emt 0:04:53]} Nc5 {[%emt 0:00:53]} 18. Bc2 {[%emt 0:00:20]} Bf5 {[%emt 0:00:59]} 19. Bxf5 {[%emt 0:10:59]} gxf5 {[%emt 0:00:08]} 20. Nh4 {[%emt 0:01:48]} Nfe4 {[%emt 0:00:22]} 21. Nxe4 {[%emt 0:00:38]} fxe4 {[%emt 0:01:19]} 22. g3 {[%emt 0:04:09]} Nd3+ {[%emt 0:00:37]} 23. Kb1 {[%emt 0:00:09]} Qg5 {[%emt 0:00:33]} 24. f4 {[%emt 0:00:56]} exf4 {[%emt 0:00:14]} 25. Qc3+ {[%emt 0:00:22]} Qf6 {[%emt 0:00:49]} 26. Rxd3 {[%emt 0:04:31]} exd3 {[%emt 0:00:13]} 27. Qxd3 {[%emt 0:00:10]} Rad8 {[%emt 0:00:39]} 28. Qf3 {[%emt 0:00:32]} Rd2 {[%emt 0:00:34]} 29. Qa3 {[%emt 0:00:22]} f3 {[%emt 0:00:30]} 30. Kc1 {[%emt 0:01:59]} Rfd8 {[%emt 0:00:30]} 31. Qxa7+ {[%emt 0:04:53]} R8d7 {[%emt 0:00:14]} 32. Qxb6 {[%emt 0:00:07]} f2 {[%emt 0:00:12]} 33. Rf1 {[%emt 0:00:07]} Rd1+ {[%emt 0:00:23]} 0-1

[Event "Estonian-ch Women 2020"]
[Site "Paul Kerese Malemaja"]
[Date "2020.08.10"]
[Round "3.2"]
[White "Blokhin, Sofia"]
[Black "Sinitsina, Anastassia"]
[Result "1-0"]
[ECO "B90"]
[WhiteElo "1786"]
[BlackElo "2175"]
[Annotator "ChessBase"]
[PlyCount "143"]
[EventDate "2020.08.09"]
[EventCountry "EST"]
[SourceTitle "playchess.com"]
[Source "ChessBase"]
[SourceQuality "1"]
[TimeControl "40/5400+30:900+30"]

1. e4 {[%emt 0:00:00]} c5 {[%emt 0:00:00]} 2. Nf3 {[%emt 0:00:00]} d6 {[%emt 0:00:05]} 3. d4 {[%emt 0:00:00]} cxd4 {[%emt 0:00:09]} 4. Nxd4 {[%emt 0:00:00]} Nf6 {[%emt 0:00:19]} 5. Nc3 {[%emt 0:00:00]} a6 {[%emt 0:00:14]} 6. Be3 {[%emt 0:01:02]} e5 {[%emt 0:00:45]} 7. Nb3 {[%emt 0:01:44]} Be6 {[%emt 0:00:45]} 8. f3 {[%emt 0:01:42]} h5 {[%emt 0:00:51]} 9. Qd2 {[%emt 0:00:47]} Nbd7 {[%emt 0:00:47]} 10. O-O-O {[%emt 0:01:21]} b5 {[%emt 0:02:01]} 11. h3 {[%emt 0:05:20]} Rc8 {[%emt 0:01:37]} 12. Kb1 {[%emt 0:04:47]} Nb6 {[%emt 0:02:09]} 13. Qf2 {[%emt 0:07:27]} Nfd7 {[%emt 0:00:45]} 14. Nd5 {[%emt 0:13:22]} Bxd5 {[%emt 0:03:44]} 15. exd5 {[%emt 0:00:12]} Nc4 {[%emt 0:01:41]} 16. Bc1 {[%emt 0:03:31]} Be7 {[%emt 0:02:51]} 17. Bd3 {[%emt 0:04:35]} h4 {[%emt 0:03:50]} 18. f4 {[%emt 0:01:55]} a5 {[%emt 0:04:00]} 19. fxe5 {[%emt 0:01:35]} Ndxe5 {[%emt 0:00:27]} 20. Nd4 {[%emt 0:03:37]} Qb6 {[%emt 0:06:15]} 21. Rhf1 {[%emt 0:05:55]} g6 {[%emt 0:01:55]} 22. Rde1 {[%emt 0:04:52]} Rh7 {[%emt 0:07:07]} 23. Bf4 {[%emt 0:07:00]} Rb8 {[%emt 0:14:30]} 24. Bxe5 {[%emt 0:03:43]} Nxe5 {[%emt 0:01:54]} 25. Bxb5+ {[%emt 0:01:00]} Kf8 {[%emt 0:00:49]} 26. b3 {[%emt 0:02:18]} Kg8 {[%emt 0:00:37]} 27. a4 {[%emt 0:01:37]} Qc7 {[%emt 0:02:38]} 28. Nc6 {[%emt 0:04:38]} Nxc6 {[%emt 0:00:05]} 29. dxc6 {[%emt 0:00:26]} d5 {[%emt 0:01:19]} 30. Qe3 {[%emt 0:02:12]} Bd6 {[%emt 0:01:45]} 31. Qd4 {[%emt 0:01:45]} Rh5 {[%emt 0:00:50]} 32. Re2 {[%emt 0:00:56]} Bg3 {[%emt 0:01:11]} 33. Qg4 {[%emt 0:02:40]} Rd8 {[%emt 0:00:44]} 34. Re3 {[%emt 0:00:39]} Qd6 {[%emt 0:01:18]} 35. Ref3 {[%emt 0:03:26]} Rh7 {[%emt 0:01:46]} 36. Qg5 {[%emt 0:02:45]} Be5 {[%emt 0:01:39]} 37. Re1 {[%emt 0:03:18]} Rh5 {[%emt 0:00:29]} 38. Qc1 {[%emt 0:00:44]} Qc5 {[%emt 0:01:02]} 39. Ref1 {[%emt 0:01:55]} Rf8 {[%emt 0:03:03]} 40. Rd3 {[%emt 0:00:00]} Bg7 {[%emt 0:00:00]} 41. Ka2 {[%emt 0:04:06]} Re5 {[%emt 0:03:59]} 42. Rdf3 {[%emt 0:02:41]} Re7 {[%emt 0:01:24]} 43. Qd2 {[%emt 0:05:45]} Rb8 {[%emt 0:02:05]} 44. c3 {[%emt 0:02:51]} Rbe8 {[%emt 0:02:30]} 45. Qf2 {[%emt 0:01:42]} Qxf2+ {[%emt 0:10:18]} 46. R1xf2 {[%emt 0:00:14]} Rc7 {[%emt 0:02:44]} 47. Rd3 {[%emt 0:00:34]} Re1 {[%emt 0:00:27]} 48. Kb2 {[%emt 0:00:34]} Rce7 {[%emt 0:01:42]} 49. Rxd5 {[%emt 0:00:50]} R1e3 {[%emt 0:00:34]} 50. Rc2 {[%emt 0:00:24]} Be5 {[%emt 0:00:41]} 51. Rd7 {[%emt 0:00:50]} Bg3 {[%emt 0:00:15]} 52. Rxe7 {[%emt 0:00:45]} Rxe7 {[%emt 0:00:04]} 53. Rd2 {[%emt 0:00:36]} f5 {[%emt 0:00:10]} 54. Rd7 {[%emt 0:00:31]} Kf7 {[%emt 0:00:05]} 55. Rxe7+ {[%emt 0:00:43]} Kxe7 {[%emt 0:00:05]} 56. b4 {[%emt 0:00:59]} Bc7 {[%emt 0:00:06]} 57. Be2 {[%emt 0:00:27]} Kd6 {[%emt 0:00:14]} 58. b5 {[%emt 0:00:31]} Kc5 {[%emt 0:00:17]} 59. Kc2 {[%emt 0:00:23]} Kd5 {[%emt 0:00:25]} 60. Kd3 {[%emt 0:00:16]} Bb6 {[%emt 0:00:42]} 61. Bd1 {[%emt 0:00:23]} Ke5 {[%emt 0:00:38]} 62. Bb3 {[%emt 0:00:21]} g5 {[%emt 0:00:07]} 63. Bd1 {[%emt 0:01:06]} Kd5 {[%emt 0:00:43]} 64. Bh5 {[%emt 0:00:34]} Ke5 {[%emt 0:00:14]} 65. Kc4 {[%emt 0:01:26]} Ke6 {[%emt 0:00:59]} 66. c7 {[%emt 0:01:00]} Kd7 {[%emt 0:00:48]} 67. Kd5 {[%emt 0:00:15]} f4 {[%emt 0:00:30]} 68. c4 {[%emt 0:00:10]} Bxc7 {[%emt 0:00:10]} 69. c5 {[%emt 0:00:08]} Bd8 {[%emt 0:00:07]} 70. b6 {[%emt 0:00:27]} Bf6 {[%emt 0:00:37]} 71. Bg4+ {[%emt 0:00:15]} Kd8 {[%emt 0:00:02]} 72. c6 {[%emt 0:00:29]} 1-0

[Event "Estonian-ch Women 2020"]
[Site "Paul Kerese Malemaja"]
[Date "2020.08.10"]
[Round "3.3"]
[White "Narva, Triin"]
[Black "Tonso, Liina"]
[Result "1-0"]
[ECO "B15"]
[WhiteElo "2107"]
[BlackElo "1862"]
[Annotator "ChessBase"]
[PlyCount "77"]
[EventDate "2020.08.09"]
[EventCountry "EST"]
[SourceTitle "playchess.com"]
[Source "ChessBase"]
[SourceQuality "1"]
[TimeControl "40/5400+30:900+30"]

1. e4 {[%emt 0:00:00]} c6 {[%emt 0:00:00]} 2. d4 {[%emt 0:00:12]} d5 {[%emt 0:00:00]} 3. Nc3 {[%emt 0:00:19]} dxe4 {[%emt 0:00:00]} 4. Nxe4 {[%emt 0:00:05]} Nf6 {[%emt 0:00:14]} 5. Nxf6+ {[%emt 0:00:43]} exf6 {[%emt 0:00:07]} 6. c3 {[%emt 0:00:29]} Bd6 {[%emt 0:00:37]} 7. Bd3 {[%emt 0:00:36]} O-O {[%emt 0:00:42]} 8. Qc2 {[%emt 0:02:47]} h6 {[%emt 0:00:31]} 9. Ne2 {[%emt 0:02:25]} Re8 {[%emt 0:01:08]} 10. Be3 {[%emt 0:03:29]} Nd7 {[%emt 0:01:28]} 11. Rd1 {[%emt 0:12:24]} Nf8 {[%emt 0:02:54]} 12. O-O {[%emt 0:16:37]} Qc7 {[%emt 0:03:35]} 13. h3 {[%emt 0:07:13]} Be6 {[%emt 0:07:45]} 14. c4 {[%emt 0:03:01]} c5 {[%emt 0:10:49]} 15. d5 {[%emt 0:06:23]} Bd7 {[%emt 0:01:03]} 16. b4 {[%emt 0:18:51]} b6 {[%emt 0:10:33]} 17. bxc5 {[%emt 0:01:01]} Bxc5 {[%emt 0:05:07]} 18. Bxc5 {[%emt 0:02:28]} bxc5 {[%emt 0:06:57]} 19. Ng3 {[%emt 0:01:08]} Qa5 {[%emt 0:02:57]} 20. Qd2 {[%emt 0:00:58]} Qc7 {[%emt 0:04:54]} 21. Rb1 {[%emt 0:04:37]} Rab8 {[%emt 0:04:31]} 22. Rxb8 {[%emt 0:06:59]} Rxb8 {[%emt 0:02:31]} 23. Re1 {[%emt 0:02:57]} Re8 {[%emt 0:06:23]} 24. Rxe8 {[%emt 0:02:22]} Bxe8 {[%emt 0:00:04]} 25. Qe3 {[%emt 0:00:49]} Ba4 {[%emt 0:01:11]} 26. Nf5 {[%emt 0:00:27]} Ng6 {[%emt 0:01:21]} 27. d6 {[%emt 0:00:38]} Qc8 {[%emt 0:03:15]} 28. h4 {[%emt 0:02:56]} Kh8 {[%emt 0:02:35]} 29. Ne7 {[%emt 0:01:02]} Qe8 {[%emt 0:08:45]} 30. Bxg6 {[%emt 0:00:25]} fxg6 {[%emt 0:00:19]} 31. Qxc5 {[%emt 0:00:07]} Qd7 {[%emt 0:02:14]} 32. Qc8+ {[%emt 0:00:22]} Qxc8 {[%emt 0:00:07]} 33. Nxc8 {[%emt 0:00:03]} Kg8 {[%emt 0:00:46]} 34. Nxa7 {[%emt 0:00:17]} Kf7 {[%emt 0:00:32]} 35. Nc8 {[%emt 0:00:48]} Ke6 {[%emt 0:00:55]} 36. c5 {[%emt 0:00:09]} g5 {[%emt 0:00:45]} 37. hxg5 {[%emt 0:00:20]} hxg5 {[%emt 0:00:09]} 38. Nb6 {[%emt 0:00:06]} Bc6 {[%emt 0:00:21]} 39. a4 {[%emt 0:00:10]} 1-0

[Event "Estonian-ch Women 2020"]
[Site "Paul Kerese Malemaja"]
[Date "2020.08.10"]
[Round "3.4"]
[White "Narva, Mai"]
[Black "Bashkite, Viktoria"]
[Result "1-0"]
[ECO "B01"]
[WhiteElo "2333"]
[BlackElo "2186"]
[Annotator "ChessBase"]
[PlyCount "65"]
[EventDate "2020.08.09"]
[EventCountry "EST"]
[SourceTitle "playchess.com"]
[Source "ChessBase"]
[SourceQuality "1"]
[TimeControl "40/5400+30:900+30"]

1. e4 {[%emt 0:00:00]} d5 {[%emt 0:00:00]} 2. exd5 {[%emt 0:00:00]} Qxd5 {[%emt 0:00:00]} 3. Nc3 {[%emt 0:00:00]} Qa5 {[%emt 0:00:19]} 4. d4 {[%emt 0:00:14]} Nf6 {[%emt 0:00:30]} 5. Nf3 {[%emt 0:00:54]} Nc6 {[%emt 0:01:26]} 6. d5 {[%emt 0:19:41]} Nb4 {[%emt 0:02:42]} 7. Bc4 {[%emt 0:21:13]} Bg4 {[%emt 0:10:09]} 8. a3 {[%emt 0:06:16]} Bxf3 {[%emt 0:03:40]} 9. gxf3 {[%emt 0:00:31]} O-O-O {[%emt 0:08:44]} 10. Bd2 {[%emt 0:08:29]} Qc5 {[%emt 0:04:18]} 11. axb4 {[%emt 0:02:31]} Qxc4 {[%emt 0:00:17]} 12. Rxa7 {[%emt 0:02:17]} Nxd5 {[%emt 0:07:22]} 13. b3 {[%emt 0:10:54]} Qd4 {[%emt 0:01:42]} 14. Ra8+ {[%emt 0:04:26]} Kd7 {[%emt 0:00:10]} 15. Rxd8+ {[%emt 0:00:49]} Kxd8 {[%emt 0:00:06]} 16. Ne2 {[%emt 0:02:38]} Qf6 {[%emt 0:03:42]} 17. Bf4 {[%emt 0:04:15]} e6 {[%emt 0:03:54]} 18. c4 {[%emt 0:02:55]} Bxb4+ {[%emt 0:01:10]} 19. Kf1 {[%emt 0:00:59]} g5 {[%emt 0:01:08]} 20. Be3 {[%emt 0:04:25]} Qxf3 {[%emt 0:01:34]} 21. Rg1 {[%emt 0:00:19]} f6 {[%emt 0:00:36]} 22. cxd5 {[%emt 0:00:50]} exd5 {[%emt 0:00:10]} 23. Qa1 {[%emt 0:02:22]} Ke7 {[%emt 0:09:17]} 24. Rg3 {[%emt 0:02:58]} Qh1+ {[%emt 0:00:39]} 25. Ng1 {[%emt 0:00:16]} Rf8 {[%emt 0:05:51]} 26. Bd4 {[%emt 0:01:31]} Bd6 {[%emt 0:01:20]} 27. Re3+ {[%emt 0:01:13]} Kd7 {[%emt 0:00:50]} 28. Bxf6 {[%emt 0:00:29]} c6 {[%emt 0:06:45]} 29. Be5 {[%emt 0:00:31]} Bc5 {[%emt 0:00:29]} 30. Re2 {[%emt 0:00:28]} Rf3 {[%emt 0:18:39]} 31. Qa5 {[%emt 0:00:31]} Bd6 {[%emt 0:00:24]} 32. Bxd6 {[%emt 0:00:21]} Kxd6 {[%emt 0:00:05]} 33. Qb4+ {[%emt 0:00:30]} 1-0

[Event "Estonian-ch Women 2020"]
[Site "Paul Kerese Malemaja"]
[Date "2020.08.11"]
[Round "4.2"]
[White "Olde, Margareth"]
[Black "Ivanova, Lidia"]
[Result "1-0"]
[ECO "D11"]
[WhiteElo "2201"]
[BlackElo "1430"]
[Annotator "ChessBase"]
[PlyCount "51"]
[EventDate "2020.08.09"]
[EventCountry "EST"]
[SourceTitle "playchess.com"]
[Source "ChessBase"]
[SourceQuality "1"]
[TimeControl "40/5400+30:900+30"]

1. Nf3 {[%emt 0:00:00]} d5 {[%emt 0:00:08]} 2. d4 {[%emt 0:00:00]} Nf6 {[%emt 0:00:18]} 3. c4 {[%emt 0:00:22]} c6 {[%emt 0:00:21]} 4. e3 {[%emt 0:00:07]} a6 {[%emt 0:00:20]} 5. Bd3 {[%emt 0:00:13]} Bg4 {[%emt 0:00:18]} 6. Nbd2 {[%emt 0:00:13]} e6 {[%emt 0:00:43]} 7. O-O {[%emt 0:00:56]} Be7 {[%emt 0:03:35]} 8. Qc2 {[%emt 0:00:34]} Nbd7 {[%emt 0:02:23]} 9. b3 {[%emt 0:00:22]} Bh5 {[%emt 0:14:00]} 10. Bb2 {[%emt 0:02:30]} Bg6 {[%emt 0:00:35]} 11. Ne5 {[%emt 0:02:31]} Qc7 {[%emt 0:13:10]} 12. h3 {[%emt 0:06:46]} Nxe5 {[%emt 0:09:11]} 13. dxe5 {[%emt 0:00:22]} Nd7 {[%emt 0:05:44]} 14. cxd5 {[%emt 0:02:46]} exd5 {[%emt 0:03:00]} 15. e6 {[%emt 0:02:40]} Nf6 {[%emt 0:00:56]} 16. exf7+ {[%emt 0:01:01]} Bxf7 {[%emt 0:01:26]} 17. e4 {[%emt 0:04:14]} dxe4 {[%emt 0:03:49]} 18. Nxe4 {[%emt 0:00:13]} O-O-O {[%emt 0:11:35]} 19. Rfe1 {[%emt 0:06:37]} Bg6 {[%emt 0:04:26]} 20. Nc5 {[%emt 0:24:20]} Bxc5 {[%emt 0:05:09]} 21. Bxg6 {[%emt 0:00:15]} Bxf2+ {[%emt 0:01:17]} 22. Qxf2 {[%emt 0:00:07]} hxg6 {[%emt 0:00:23]} 23. Be5 {[%emt 0:00:51]} Qa5 {[%emt 0:15:29]} 24. Qa7 {[%emt 0:01:28]} Qb5 {[%emt 0:00:22]} 25. Qb8+ {[%emt 0:00:16]} Kd7 {[%emt 0:00:09]} 26. Qd6+ {[%emt 0:00:45]} 1-0